Workbook

Sheet Espacio y rack
A1: 1 | B1: ESPACIO EN RACK
C2: =C5*C26 -> 61.32008726 | D2: =D5*D26 -> 42.43476481 | E2: 42.85599659 | F2: 29.05222541 | G2: =G5*G26 -> 23.99504379
B3: Variables de la fórmula | C3: 1. Espacio en Rack (por tipo de zona)
C4: Zona A | D4: Zona B | E4: Zona C | F4: Zona D | G4: Zona E
C5: =C6+C7 -> 183.9621014 | D5: =D6+D7 -> 127.3055675 | E5: 128.5692755 | F5: 87.1575478 | G5: =G6+G7 -> 71.98585122
B6: Mensualidad edific. y obra civil= | C6: =(C12+$D$51)*($C$18/(1-(1+$C$18)^(-$C$15))) -> 144.0020207 | D6: =(D12+$D$51)*($C$18/(1-(1+$C$18)^(-$C$15))) -> 87.34548679 | E6: =(E12+$D$51)*($C$18/(1-(1+$C$18)^(-$C$15))) -> 88.60919477 | F6: =(F12+$D$51)*($C$18/(1-(1+$C$18)^(-$C$15))) -> 47.19746712 | G6: =(G12+$D$51)*($C$18/(1-(1+$C$18)^(-$C$15))) -> 32.02577053 | J6: Penalidad
B7: Mensualidad rack= | C7: =(C13+C51)*($C$18/(1-(1+$C$18)^(-$C$16))) -> 39.96008068 | D7: =(D13+C51)*($C$18/(1-(1+$C$18)^(-$C$16))) -> 39.96008068 | E7: =(E13+C51)*($C$18/(1-(1+$C$18)^(-$C$16))) -> 39.96008068 | F7: =(F13+C51)*($C$18/(1-(1+$C$18)^(-$C$16))) -> 39.96008068 | G7: =(G13+C51)*($C$18/(1-(1+$C$18)^(-$C$16))) -> 39.96008068 | K7: =K9+K10 -> 61.32008726 | L7: =L9+L10 -> 42.43476481 | M7: =M9+M10 -> 42.85599659 | N7: =N9+N10 -> 29.05222541 | O7: =O9+O10 -> 23.99504379
K8: =+C4 -> Zona A | L8: =+D4 -> Zona B | M8: Zona C | N8: Zona D | O8: Zona E
B9: Precio (1/3 Rack) = | C9: =(((C12+$D$51)*($C$18/(1-(1+$C$18)^(-$C$15)))+(C13+$C$51)*($C$18/(1-(1+$C$18)^(-$C$16))))+C20+C24)*C26 -> 115.3063199 | D9: =(((D12+$D$51)*($C$18/(1-(1+$C$18)^(-$C$15)))+(D13+$C$51)*($C$18/(1-(1+$C$18)^(-$C$16))))+D20+D24)*D26 -> 78.8635172 | E9: =(((E12+$D$51)*($C$18/(1-(1+$C$18)^(-$C$15)))+(E13+$C$51)*($C$18/(1-(1+$C$18)^(-$C$16))))+E20+E24)*E26 -> 79.67636361 | F9: =(((F12+$D$51)*($C$18/(1-(1+$C$18)^(-$C$15)))+(F13+$C$51)*($C$18/(1-(1+$C$18)^(-$C$16))))+F20+F24)*F26 -> 53.0393755 | G9: =(((G12+$D$51)*($C$18/(1-(1+$C$18)^(-$C$15)))+(G13+$C$51)*($C$18/(1-(1+$C$18)^(-$C$16))))+G20+G24)*G26 -> 43.28058676 | J9: Mensualidad de inv inicial | K9: =+(C26*(C34+D34)*($C$18/(1-(1+$C$18)^(-$C$15))))+(C26*E34*($C$18/(1-(1+$C$18)^(-$C$16)))) -> 57.37704333 | L9: =+(D26*(C35+D35)*($C$18/(1-(1+$C$18)^(-$C$15))))+(D26*E35*($C$18/(1-(1+$C$18)^(-$C$16)))) -> 38.49172088 | M9: =+(E26*(C36+D36)*($C$18/(1-(1+$C$18)^(-$C$15))))+(E26*E36*($C$18/(1-(1+$C$18)^(-$C$16)))) -> 38.91295266 | N9: =+(F26*(C37+D37)*($C$18/(1-(1+$C$18)^(-$C$15))))+(F26*E37*($C$18/(1-(1+$C$18)^(-$C$16)))) -> 25.10918148 | O9: =+(G26*(C38+D38)*($C$18/(1-(1+$C$18)^(-$C$15))))+(G26*E38*($C$18/(1-(1+$C$18)^(-$C$16)))) -> 20.05199986
B10: Precio (Full Rack) = | C10: =C9*3 -> 345.9189597 | D10: =D9*3 -> 236.5905516 | E10: 239.0290908 | F10: 159.1181265 | G10: 129.8417603 | J10: Mensualidad de inv incremental | K10: =+(C26*C51*($C$18/(1-(1+$C$18)^(-$C$16))))+(C26*D51*($C$18/(1-(1+$C$18)^(-$C$15)))) -> 3.943043929 | L10: =+(D26*C52*($C$18/(1-(1+$C$18)^(-$C$16))))+(D26*D52*($C$18/(1-(1+$C$18)^(-$C$15)))) -> 3.943043929 | M10: =+(E26*C53*($C$18/(1-(1+$C$18)^(-$C$16))))+(E26*D53*($C$18/(1-(1+$C$18)^(-$C$15)))) -> 3.943043929 | N10: =+(F26*C54*($C$18/(1-(1+$C$18)^(-$C$16))))+(F26*D54*($C$18/(1-(1+$C$18)^(-$C$15)))) -> 3.943043929 | O10: =+(G26*C55*($C$18/(1-(1+$C$18)^(-$C$16))))+(G26*D55*($C$18/(1-(1+$C$18)^(-$C$15)))) -> 3.943043929
B11: Precio (2/3 Rack) = | C11: =C9*2 -> 230.6126398 | D11: =D9*2 -> 157.7270344 | E11: 159.3527272 | F11: 106.078751 | G11: 86.56117352 | J11: =+B20 -> OAMr = | K11: =+(C26*C20) -> 53.98623264 | L11: =+(D26*D20) -> 36.42875239 | M11: =+(E26*E20) -> 36.82036703 | N11: =+(F26*F20) -> 23.98715009 | O11: =+(G26*G20) -> 19.28554297
B12: Inversión edific. y obra civil (n=240) | C12: =SUM(C34:D34) -> 18479.36808 | D12: =SUM(C35:D35) -> 10938.08775 | E12: =SUM(C36:D36) -> 11106.29387 | F12: =SUM(C37:D37) -> 5594.176809 | G12: =SUM(C38:D38) -> 3574.744818 | J12: =+B24 -> Ct = | K12: =+(C26*C24) -> 0 | L12: =+(D26*D24) -> 0 | M12: =+(E26*E24) -> 0 | N12: =+(F26*F24) -> 0 | O12: =+(G26*G24) -> 0
B13: Inversión en rack (n=120) | C13: =E34 -> 2920 | D13: =E35 -> 2920 | E13: =E36 -> 2920 | F13: =E37 -> 2920 | G13: =E38 -> 2920 | J13: =+B22 -> OAMi = | K13: =+(C22*C28) -> 0 | L13: =+(D22*D28) -> 0 | M13: =+(E22*E28) -> 0 | N13: =+(F22*F28) -> 0 | O13: =+(G22*G28) -> 0
B14: Inversión total | C14: =SUM(C12:C13) -> 21399.36808 | D14: =SUM(D12:D13) -> 13858.08775 | E14: 14026.29387 | F14: 8514.176809 | G14: 6494.744818 | J14: Precio total (1/3 Rack) = | K14: =SUM(K9:K13) -> 115.3063199 | L14: =SUM(L9:L13) -> 78.8635172 | M14: =SUM(M9:M13) -> 79.67636361 | N14: 53.0393755 | O14: =SUM(O9:O13) -> 43.28058676
B15: n "edific. y obra civil" = | C15: =Parámetros!$E$5 -> 240 | D15: =Parámetros!$E$5 -> 240 | E15: =Parámetros!$E$5 -> 240 | F15: =Parámetros!$E$5 -> 240 | G15: =Parámetros!$E$5 -> 240
B16: n "rack" = | C16: =Parámetros!$E$7 -> 120 | D16: =Parámetros!$E$7 -> 120 | E16: =Parámetros!$E$7 -> 120 | F16: =Parámetros!$E$7 -> 120 | G16: =Parámetros!$E$7 -> 120 | J16: % inv incremental= | K16: =+K10/K14 -> 0.03419625162 | L16: =+L10/L14 -> 0.0499983271 | M16: =+M10/M14 -> 0.0494882516 | N16: 0.0743418242 | O16: =+O10/O14 -> 0.0911042161
B18: WACC = | C18: =Parámetros!$I$5 -> 0.005497367083 | D18: =Parámetros!$I$5 -> 0.005497367083 | E18: =Parámetros!$I$5 -> 0.005497367083 | F18: =Parámetros!$I$5 -> 0.005497367083 | G18: =Parámetros!$I$5 -> 0.005497367083
B20: OAMr = | C20: =SUM(C43:G43) -> 161.9603175 | D20: =SUM(C44:G44) -> 109.28735 | E20: =SUM(C45:G45) -> 110.4622057 | F20: =SUM(C46:G46) -> 71.9621699 | G20: =SUM(C47:G47) -> 57.85720749
B22: OAMi = | C22: 0 | D22: 0 | E22: 0 | F22: 0 | G22: 0
B24: Ct = | C24: 0 | D24: 0 | E24: 0 | F24: 0 | G24: 0
B26: FUT = | C26: 0.33333 | D26: 0.33333 | E26: 0.33333 | F26: 0.33333 | G26: 0.33333
B28: FUC =
B30: Adecuación = | C30: 0 | D30: 0 | E30: 0 | F30: 0 | G30: 0
B31: Preciario considerado por OSIPTEL
B32: Tipo de zona | C32: Inversión Inicial (relativa a un entrante) S/.
B33: Espacio en Rack | C33: Costo 3m2 Edificación | D33: Trabajos de adecuación de 3m2 edif. (a sala técnica) | E33: INVERSIÓN - Rack | F33: Vida útil Edificación (mes) | G33: Vida útil- Rack (mes)
B34: Zona A | C34: 16185.86017 | D34: =$C$39*$D$39 -> 2293.507907 | E34: 2920 | F34: =Parámetros!$E$5 -> 240 | G34: =Parámetros!$E$7 -> 120
B35: Zona B | C35: 8644.579839 | D35: =$C$39*$D$39 -> 2293.507907 | E35: 2920 | F35: =Parámetros!$E$5 -> 240 | G35: =Parámetros!$E$7 -> 120
B36: Zona C | C36: 8812.785966 | D36: =$C$39*$D$39 -> 2293.507907 | E36: 2920 | F36: =Parámetros!$E$5 -> 240 | G36: =Parámetros!$E$7 -> 120
B37: Zona D | C37: 3300.668901 | D37: 2293.507907 | E37: 2920 | F37: =Parámetros!$E$5 -> 240 | G37: =Parámetros!$E$7 -> 120
B38: Zona E | C38: 1281.23691 | D38: 2293.507907 | E38: 2920 | F38: =Parámetros!$E$5 -> 240 | G38: =Parámetros!$E$7 -> 120
B39: Promedio | C39: =AVERAGE(C34:C38) -> 7645.026358 | D39: 0.3
B41: Tipo de zona | C41: OAMr (mensual) | H41: Factor Uso (OPEX + Inversión Inicial)
B42: Espacio en Rack | C42: Costo de operación y mantenimiento | D42: Seguridad | E42: Arbitrios | F42: Gasto Administrativo | G42: Margen Operativo
B43: Zona A | C43: =(C12+C13)*$C$48/12 -> 121.2630858 | D43: 3.217800562 | E43: 6.031938537 | F43: =(SUM(C43:E43)+C5)*$F$48 -> 31.44749263 | G43: 0 | H43: 1
B44: Zona B | C44: =(D12+D13)*$C$48/12 -> 78.5291639 | D44: 3.217800562 | E44: 6.031938537 | F44: =(SUM(C44:E44)+D5)*$F$48 -> 21.50844705 | G44: 0 | H44: 1
B45: Zona C | C45: =(E12+E13)*$C$48/12 -> 79.48233195 | D45: 3.217800562 | E45: 6.031938537 | F45: =(SUM(C45:E45)+E5)*$F$48 -> 21.73013465 | G45: 0 | H45: 1
B46: Zona D | C46: =(F12+F13)*$C$48/12 -> 48.24700192 | D46: 3.217800562 | E46: 6.031938537 | F46: =(SUM(C46:E46)+F5)*$F$48 -> 14.46542888 | G46: 0 | H46: 1
B47: Zona E | C47: =(G12+G13)*$C$48/12 -> 36.80355397 | D47: 3.217800562 | E47: 6.031938537 | F47: =(SUM(C47:E47)+G5)*$F$48 -> 11.80391443 | G47: 0 | H47: 1
C48: 0.068 | F48: 0.1
B49: Tipo de zona | C49: CAPEX incremental
B50: Espacio en Rack | C50: Adecuación del rack (para compartición) | D50: Adecuación de obra civil (para compartición) | E50: Inversión de adecuación total (incremental) | F50: Instalación | G50: Estudios + Mano Obra | H50: G. Adm. | I50: Factor Uso (CAPEX incremental)
B51: Zona A | C51: =(E34*$C$56) -> 584 | D51: =D34*$D$56 -> 688.0523722 | E51: =C51+D51 -> 1272.052372 | I51: 1
B52: Zona B | C52: =(E35*$C$56) -> 584 | D52: =D35*$D$56 -> 688.0523722 | E52: =C52+D52 -> 1272.052372 | I52: 1
B53: Zona C | C53: 584 | D53: 688.0523722 | E53: 1272.052372 | I53: 1
B54: Zona D | C54: 584 | D54: 688.0523722 | E54: 1272.052372 | I54: 1
B55: Zona E | C55: 584 | D55: 688.0523722 | E55: 1272.052372 | I55: 1
C56: 0.2 | D56: 0.3

Sheet Energía
A3: 2 | B3: CAPACIDAD DE ENERGÍA
B7: Variables de la fórmula | C7: 2.a Energía AC (por tipo de zona) | J7: Variables de la fórmula | K7: 2.b Energía DC por tipo de zona | R7: Variables de la fórmula | S7: 2.c Energía AC – estabilizada (por tipo de zona)
C8: Zona A | D8: Zona B | E8: Zona C | F8: Zona D | G8: Zona E | K8: Zona A | L8: Zona B | M8: Zona C | N8: Zona D | O8: Zona E | S8: Zona A | T8: Zona B | U8: Zona C | V8: Zona D | W8: Zona E
B10: Mensualidad de Inversión= | C10: =C14*($C$18/(1-(1+$C$18)^(-$C$16))) -> 114.6776157 | D10: =D14*($C$18/(1-(1+$C$18)^(-$C$16))) -> 114.6776157 | E10: =E14*($C$18/(1-(1+$C$18)^(-$C$16))) -> 68.37442085 | F10: =F14*($C$18/(1-(1+$C$18)^(-$C$16))) -> 68.37442085 | G10: =G14*($C$18/(1-(1+$C$18)^(-$C$16))) -> 123.109121 | J10: Mensualidad de Inversión= | K10: =K14*($K$18/(1-(1+$K$18)^(-$K$16))) -> 325.3928817 | L10: =L14*($K$18/(1-(1+$K$18)^(-$K$16))) -> 325.3928817 | M10: =M14*($K$18/(1-(1+$K$18)^(-$K$16))) -> 202.7734694 | N10: 202.7734694 | O10: 259.6087584 | R10: Mensualidad de Inversión= | S10: =S14*($S$18/(1-(1+$S$18)^(-$S$16))) -> 214.2409528 | T10: =T14*($S$18/(1-(1+$S$18)^(-$S$16))) -> 214.2409528 | U10: =U14*($S$18/(1-(1+$S$18)^(-$S$16))) -> 183.6025719 | V10: 183.6025719 | W10: =W14*($S$18/(1-(1+$S$18)^(-$S$16))) -> 223.9667968
C11: =((C10+C20+C24)*C26)+(C22*C28) -> 188.8264972 | D11: =((D10+D20+D24)*D26)+(D22*D28) -> 188.8264972 | E11: 112.5843288 | F11: =((F10+F20+F24)*F26)+(F22*F28) -> 112.5843288 | G11: 202.7096914 | K11: =((K10+K20+K24)*K26)+(K22*K28) -> 535.7871952 | L11: =((L10+L20+L24)*L26)+(L22*L28) -> 535.7871952 | M11: 333.8838511 | N11: 333.8838511 | O11: =((O10+O20+O24)*O26)+(O22*O28) -> 427.4680127 | S11: =((S10+S20+S24)*S26)+(S22*S28) -> 352.7660427 | T11: =((T10+T20+T24)*T26)+(T22*T28) -> 352.7660427 | U11: 302.3173296 | V11: 302.3173296 | W11: =((W10+W20+W24)*W26)+(W22*W28) -> 368.7804763
B12: Precio Mensual (1 KW) = | C12: =(((C14*($C$18/(1-(1+$C$18)^(-$C$16))))+C20+C24)*C26)+(C22*C28) -> 188.8264972 | D12: =(((D14*($C$18/(1-(1+$C$18)^(-$C$16))))+D20+D24)*D26)+(D22*D28) -> 188.8264972 | E12: =(((E14*($C$18/(1-(1+$C$18)^(-$C$16))))+E20+E24)*E26)+(E22*E28) -> 112.5843288 | F12: =(((F14*($C$18/(1-(1+$C$18)^(-$C$16))))+F20+F24)*F26)+(F22*F28) -> 112.5843288 | G12: =(((G14*($C$18/(1-(1+$C$18)^(-$C$16))))+G20+G24)*G26)+(G22*G28) -> 202.7096914 | J12: Precio Mensual = | K12: =(((K14*($K$18/(1-(1+$K$18)^(-$K$16))))+K20+K24)*K26)+(K22*K28) -> 535.7871952 | L12: =(((L14*($K$18/(1-(1+$K$18)^(-$K$16))))+L20+L24)*L26)+(L22*L28) -> 535.7871952 | M12: =(((M14*($K$18/(1-(1+$K$18)^(-$K$16))))+M20+M24)*M26)+(M22*M28) -> 333.8838511 | N12: =(((N14*($K$18/(1-(1+$K$18)^(-$K$16))))+N20+N24)*N26)+(N22*N28) -> 333.8838511 | O12: =(((O14*($K$18/(1-(1+$K$18)^(-$K$16))))+O20+O24)*O26)+(O22*O28) -> 427.4680127 | R12: Precio Mensual = | S12: =(((S14*($S$18/(1-(1+$K$18)^(-$S$16))))+S20+S24)*S26)+(S22*S28) -> 352.7660427 | T12: =(((T14*($S$18/(1-(1+$K$18)^(-$S$16))))+T20+T24)*T26)+(T22*T28) -> 352.7660427 | U12: 302.3173296 | V12: 302.3173296 | W12: =(((W14*($S$18/(1-(1+$K$18)^(-$S$16))))+W20+W24)*W26)+(W22*W28) -> 368.7804763
B14: Inversión = | C14: =C35 -> 10055.79464 | D14: =C36 -> 10055.79464 | E14: =C37 -> 5995.582756 | F14: =C38 -> 5995.582756 | G14: =C39 -> 10795.13235 | J14: Inversión = | K14: =K35 -> 28532.89177 | L14: =K36 -> 28532.89177 | M14: =K37 -> 17780.70076 | N14: =K38 -> 17780.70076 | O14: =K39 -> 22764.44576 | R14: Inversión = | S14: =S35 -> 18786.25582 | T14: =S36 -> 18786.25582 | U14: =S37 -> 16099.65248 | V14: =S38 -> 16099.65248 | W14: =S39 -> 19639.09088
B16: n = | C16: =Parámetros!$E$8 -> 120 | D16: =Parámetros!$E$8 -> 120 | E16: =Parámetros!$E$8 -> 120 | F16: =Parámetros!$E$8 -> 120 | G16: =Parámetros!$E$8 -> 120 | J16: n = | K16: =Parámetros!$E$8 -> 120 | L16: =Parámetros!$E$8 -> 120 | M16: =Parámetros!$E$8 -> 120 | N16: =Parámetros!$E$8 -> 120 | O16: =Parámetros!$E$8 -> 120 | R16: n = | S16: =Parámetros!$E$8 -> 120 | T16: =Parámetros!$E$8 -> 120 | U16: =Parámetros!$E$8 -> 120 | V16: =Parámetros!$E$8 -> 120 | W16: =Parámetros!$E$8 -> 120
B18: WACC = | C18: =Parámetros!$I$5 -> 0.005497367083 | D18: =Parámetros!$I$5 -> 0.005497367083 | E18: =Parámetros!$I$5 -> 0.005497367083 | F18: =Parámetros!$I$5 -> 0.005497367083 | G18: =Parámetros!$I$5 -> 0.005497367083 | J18: WACC = | K18: =Parámetros!$I$5 -> 0.005497367083 | L18: =Parámetros!$I$5 -> 0.005497367083 | M18: =Parámetros!$I$5 -> 0.005497367083 | N18: =Parámetros!$I$5 -> 0.005497367083 | O18: =Parámetros!$I$5 -> 0.005497367083 | R18: WACC = | S18: =Parámetros!$I$5 -> 0.005497367083 | T18: =Parámetros!$I$5 -> 0.005497367083 | U18: =Parámetros!$I$5 -> 0.005497367083 | V18: =Parámetros!$I$5 -> 0.005497367083 | W18: =Parámetros!$I$5 -> 0.005497367083
B20: OAMr = | C20: =SUM(E35:F35) -> 74.14888151 | D20: =SUM(E36:F36) -> 74.14888151 | E20: =SUM(E37:F37) -> 44.20990793 | F20: =SUM(E38:F38) -> 44.20990793 | G20: =SUM(E39:F39) -> 79.60057043 | J20: OAMr = | K20: =SUM(M35:N35) -> 210.3943136 | L20: =SUM(M36:N36) -> 210.3943136 | M20: =SUM(M37:N37) -> 131.1103817 | N20: =SUM(M38:N38) -> 131.1103817 | O20: =SUM(M39:N39) -> 167.8592544 | R20: OAMr = | S20: =SUM(U35:V35) -> 138.5250899 | T20: =SUM(U36:V36) -> 138.5250899 | U20: =SUM(U37:V37) -> 118.7147577 | V20: =SUM(U38:V38) -> 118.7147577 | W20: =SUM(U39:V39) -> 144.8136795
B22: OAMi = | C22: 0 | D22: 0 | E22: 0 | F22: 0 | G22: 0 | J22: OAMi = | K22: 0 | L22: 0 | M22: 0 | N22: 0 | O22: 0 | R22: OAMi = | S22: 0 | T22: 0 | U22: 0 | V22: 0 | W22: 0
B24: Ct = | C24: 0 | D24: 0 | E24: 0 | F24: 0 | G24: 0 | J24: Ct = | K24: 0 | L24: 0 | M24: 0 | N24: 0 | O24: 0 | R24: Ct = | S24: 0 | T24: 0 | U24: 0 | V24: 0 | W24: 0
B26: FUT = | C26: 1 | D26: 1 | E26: 1 | F26: 1 | G26: 1 | J26: FUT = | K26: 1 | L26: 1 | M26: 1 | N26: 1 | O26: 1 | R26: FUT = | S26: 1 | T26: 1 | U26: 1 | V26: 1 | W26: 1
B28: FUC = | C28: 1 | D28: 1 | E28: 1 | F28: 1 | G28: 1 | J28: FUC = | K28: 1 | L28: 1 | M28: 1 | N28: 1 | O28: 1 | R28: FUC = | S28: 1 | T28: 1 | U28: 1 | V28: 1 | W28: 1
B30: Adecuación = | C30: =SUM(C43:D43) -> 300 | D30: =SUM(C44:D44) -> 300 | E30: =SUM(C45:D45) -> 300 | F30: =SUM(C46:D46) -> 300 | G30: =SUM(C47:D47) -> 300 | J30: Adecuación = | K30: =SUM(K43:L43) -> 300 | L30: =SUM(K44:L44) -> 300 | M30: =SUM(K45:L45) -> 300 | N30: =SUM(K46:L46) -> 300 | O30: =SUM(K47:L47) -> 300 | R30: Adecuación = | S30: =SUM(S43:T43) -> 300 | T30: =SUM(S44:T44) -> 300 | U30: =SUM(S45:T45) -> 300 | V30: =SUM(S46:T46) -> 300 | W30: =SUM(S47:T47) -> 300
B32: Preciario considerado por OSIPTEL | J32: Preciario considerado por OSIPTEL | R32: Preciario considerado por OSIPTEL
C33: Inversión Inicial (relativa a un entrante) | E33: OAMr | G33: Factor Uso (OPEX + Inversión Inicial) | K33: Inversión Inicial (relativa a un entrante) | M33: OAMr | O33: Factor Uso (OPEX + Inversión Inicial) | S33: Inversión Inicial (relativa a un entrante) | U33: OAMr | W33: Factor Uso (OPEX + Inversión Inicial)
B34: Energía AC | C34: Monto de Inversión | D34: Vida útil | E34: Costo de operación y mantenimiento | F34: Gasto Administrativo | J34: Energía DC | K34: Monto de Inversión | L34: Vida útil | M34: Costo de operación y mantenimiento | N34: Gasto Administrativo | R34: Energía AC Estabilizada | S34: Monto de Inversión | T34: Vida útil | U34: Costo de operación y mantenimiento | V34: Gasto Administrativo
B35: Zona A | C35: ='Resumen energía'!F7 -> 10055.79464 | D35: =Parámetros!$E$8 -> 120 | E35: =C14*$E$40/12 -> 56.98283631 | F35: =(E35+C10)*$F$40 -> 17.1660452 | G35: 1 | J35: Zona A | K35: ='Resumen energía'!F6 -> 28532.89177 | L35: =Parámetros!$E$8 -> 120 | M35: =K14*$M$40/12 -> 161.6863867 | N35: =(M35+K10)*$N$40 -> 48.70792684 | O35: 1 | R35: Zona A | S35: ='Resumen energía'!F8 -> 18786.25582 | T35: =Parámetros!$E$8 -> 120 | U35: =S14*$U$40/12 -> 106.4554497 | V35: =(U35+S10)*$V$40 -> 32.06964024 | W35: 1
B36: Zona B | C36: ='Resumen energía'!F7 -> 10055.79464 | D36: =Parámetros!$E$8 -> 120 | E36: =D14*$E$40/12 -> 56.98283631 | F36: =(E36+D10)*$F$40 -> 17.1660452 | G36: 1 | J36: Zona B | K36: ='Resumen energía'!F6 -> 28532.89177 | L36: =Parámetros!$E$8 -> 120 | M36: =L14*$M$40/12 -> 161.6863867 | N36: =(M36+L10)*$N$40 -> 48.70792684 | O36: 1 | R36: Zona B | S36: ='Resumen energía'!F8 -> 18786.25582 | T36: =Parámetros!$E$8 -> 120 | U36: =T14*$U$40/12 -> 106.4554497 | V36: =(U36+T10)*$V$40 -> 32.06964024 | W36: 1
B37: Zona C | C37: ='Resumen energía'!F11 -> 5995.582756 | D37: =Parámetros!$E$8 -> 120 | E37: =E14*$E$40/12 -> 33.97496895 | F37: =(E37+E10)*$F$40 -> 10.23493898 | G37: 1 | J37: Zona C | K37: ='Resumen energía'!F10 -> 17780.70076 | L37: =Parámetros!$E$8 -> 120 | M37: =M14*$M$40/12 -> 100.7573043 | N37: =(M37+M10)*$N$40 -> 30.35307737 | O37: 1 | R37: Zona C | S37: ='Resumen energía'!F12 -> 16099.65248 | T37: =Parámetros!$E$8 -> 120 | U37: =U14*$U$40/12 -> 91.23136405 | V37: =(U37+U10)*$V$40 -> 27.4833936 | W37: 1
B38: Zona D | C38: ='Resumen energía'!F11 -> 5995.582756 | D38: =Parámetros!$E$8 -> 120 | E38: =F14*$E$40/12 -> 33.97496895 | F38: =(E38+F10)*$F$40 -> 10.23493898 | G38: 1 | J38: Zona D | K38: ='Resumen energía'!F10 -> 17780.70076 | L38: =Parámetros!$E$8 -> 120 | M38: =N14*$M$40/12 -> 100.7573043 | N38: =(M38+N10)*$N$40 -> 30.35307737 | O38: 1 | R38: Zona D | S38: ='Resumen energía'!F12 -> 16099.65248 | T38: =Parámetros!$E$8 -> 120 | U38: =V14*$U$40/12 -> 91.23136405 | V38: =(U38+V10)*$V$40 -> 27.4833936 | W38: 1
B39: Zona E | C39: ='Resumen energía'!F15 -> 10795.13235 | D39: =Parámetros!$E$8 -> 120 | E39: =G14*$E$40/12 -> 61.17241667 | F39: =(E39+G10)*$F$40 -> 18.42815376 | G39: 1 | J39: Zona E | K39: ='Resumen energía'!F14 -> 22764.44576 | L39: =Parámetros!$E$8 -> 120 | M39: =O14*$M$40/12 -> 128.998526 | N39: =(M39+O10)*$N$40 -> 38.86072843 | O39: 1 | R39: Zona E | S39: ='Resumen energía'!F16 -> 19639.09088 | T39: =Parámetros!$E$8 -> 120 | U39: =W14*$U$40/12 -> 111.2881816 | V39: =(U39+W10)*$V$40 -> 33.52549784 | W39: 1
E40: 0.068 | F40: 0.1 | M40: 0.068 | N40: 0.1 | U40: 0.068 | V40: 0.1
C41: INVERSIÓN incremental | K41: INVERSIÓN incremental | S41: INVERSIÓN incremental
B42: Energía AC | C42: Monto de Inversión | D42: Estudio | E42: Factor Uso (inversión incremental) | J42: Energía DC | K42: Monto de Inversión | L42: Estudio | M42: Factor Uso (inversión incremental) | R42: Energía AC Estabilizada | S42: Monto de Inversión | T42: Estudio | U42: Factor Uso (inversión incremental)
B43: Zona A | C43: 0 | D43: 300 | E43: 1 | J43: Zona A | K43: 0 | L43: 300 | M43: 1 | R43: Zona A | S43: 0 | T43: 300 | U43: 1
B44: Zona B | C44: 0 | D44: 300 | E44: 1 | J44: Zona B | K44: 0 | L44: 300 | M44: 1 | R44: Zona B | S44: 0 | T44: 300 | U44: 1
B45: Zona C | C45: 0 | D45: 300 | E45: 1 | J45: Zona C | K45: 0 | L45: 300 | M45: 1 | R45: Zona C | S45: 0 | T45: 300 | U45: 1
B46: Zona D | C46: 0 | D46: 300 | E46: 1 | J46: Zona D | K46: 0 | L46: 300 | M46: 1 | R46: Zona D | S46: 0 | T46: 300 | U46: 1
B47: Zona E | C47: 0 | D47: 300 | E47: 1 | J47: Zona E | K47: 0 | L47: 300 | M47: 1 | R47: Zona E | S47: 0 | T47: 300 | U47: 1

Sheet Postes
A1: 3 | B1: PUNTO DE APOYO EN POSTE
B3: Variables de la fórmula | C3: Poste de Concreto | E3: Poste de Fibra Vidrio
C4: Lima | D4: Provincias | E4: Lima | F4: Provincias
B5: Mensualidad= | C5: =C9*($C$13/(1-(1+$C$13)^(-$C$11))) -> 5.424837471 | D5: =D9*($D$13/(1-(1+$D$13)^(-$D$11))) -> 5.424837471 | E5: =E9*($E$13/(1-(1+$E$13)^(-$E$11))) -> 9.945064506 | F5: =F9*($F$13/(1-(1+$F$13)^(-$F$11))) -> 9.945064506
C6: =((C5+C15+C19)*C21)+(C17*C23) -> 3.754570956 | D6: =((D5+D15+D19)*D21)+(D17*D23) -> 3.754570956 | E6: =((E5+E15+E19)*E21)+(E17*E23) -> 6.883054202 | F6: =((F5+F15+F19)*F21)+(F17*F23) -> 6.883054202
B7: Precio mensual (por punto de apoyo)= | C7: =(((C9*($C$13/(1-(1+$C$13)^(-$C$11))))+C15+C19)*C21)+(C17*C23) -> 3.754570956 | D7: =(((D9*($C$13/(1-(1+$C$13)^(-$C$11))))+D15+D19)*D21)+(D17*D23) -> 3.754570956 | E7: =(((E9*($C$13/(1-(1+$C$13)^(-$C$11))))+E15+E19)*E21)+(E17*E23) -> 6.883054202 | F7: =(((F9*($C$13/(1-(1+$C$13)^(-$C$11))))+F15+F19)*F21)+(F17*F23) -> 6.883054202
B9: Inversión = | C9: =SUM(C30:G30) -> 849.6885 | D9: =SUM(C32:G32) -> 849.6885 | E9: =SUM(C31:G31) -> 1557.6885 | F9: =SUM(C33:G33) -> 1557.6885
B11: n = | C11: =Parámetros!$E$9 -> 360 | D11: =Parámetros!$E$9 -> 360 | E11: =Parámetros!$E$9 -> 360 | F11: =Parámetros!$E$9 -> 360
B13: WACC = | C13: =Parámetros!$I$5 -> 0.005497367083 | D13: =Parámetros!$I$5 -> 0.005497367083 | E13: =Parámetros!$I$5 -> 0.005497367083 | F13: =Parámetros!$I$5 -> 0.005497367083
B15: OAMr = | C15: =SUM(C39:E39) -> 5.838875397 | D15: =SUM(C41:E41) -> 5.838875397 | E15: =SUM(C40:E40) -> 10.7040981 | F15: =SUM(C42:E42) -> 10.7040981
B17: OAMi = | C17: 0 | D17: 0 | E17: 0 | F17: 0
B19: Ct = | C19: 0 | D19: 0 | E19: 0 | F19: 0
B21: FUT = | C21: =1/3 -> 0.3333333333 | D21: =1/3 -> 0.3333333333 | E21: 0.3333333333 | F21: 0.3333333333
B23: FUC =
B25: Adecuación por punto de apoyo = | C25: =SUM(C46:F46) -> 8.445946667 | D25: =SUM(C48:F48) -> 13.30565867 | E25: =SUM(C47:F47) -> 8.445946667 | F25: =SUM(C49:F49) -> 13.30565867
B27: Preciario considerado por OSIPTEL
B28: Punto de Apoyo en Postes | C28: Inversión Inicial (relativa a 3 entrantes) S/.
B29: Espacio en Rack | C29: Material | D29: Montaje de poste (SICODI) | E29: Grúa | F29: Gasto Administrativo de obra | G29: Licencias y Tributos de obra | H29: Vida útil (mes)
B30: Lima: Espacio en Postes de Concreto | C30: 480.05 | D30: =C30*$D$34 -> 369.6385 | E30: 0 | H30: =Parámetros!$E$9 -> 360
B31: Lima: Espacio en Postes de Fibra de Vidrio | C31: 880.05 | D31: =C31*$D$34 -> 677.6385 | E31: 0 | H31: =Parámetros!$E$9 -> 360
B32: Provincias: Espacio en Postes de Concreto | C32: 480.05 | D32: =C32*$D$34 -> 369.6385 | E32: 0 | H32: =Parámetros!$E$9 -> 360
B33: Provincias: Espacio en Postes de Fibra de Vidrio | C33: 880.05 | D33: 677.6385 | E33: 0 | H33: =Parámetros!$E$9 -> 360
B34: Ratios | D34: 0.77
B35: Promedios
B37: Punto de Apoyo en Postes | C37: OAMr | F37: Factor Uso (OPEX + Inversión Inicial)
B38: Espacio en Rack | C38: Costo de operación y mantenimiento | D38: Gasto Administrativo | E38: Margen Operativo
B39: Lima: Espacio en Postes de Concreto | C39: =C9*$C$43/12 -> 4.8149015 | D39: =(C39+C5)*$D$43 -> 1.023973897 | E39: 0 | F39: 0.3333333333
B40: Lima: Espacio en Postes de Fibra de Vidrio | C40: =E9*$C$43/12 -> 8.8269015 | D40: =(C40+E5)*$D$43 -> 1.877196601 | E40: 0 | F40: 0.3333333333
B41: Provincias: Espacio en Postes de Concreto | C41: =D9*$C$43/12 -> 4.8149015 | D41: =(C41+D5)*$D$43 -> 1.023973897 | E41: 0 | F41: 0.3333333333
B42: Provincias: Espacio en Postes de Fibra de Vidrio | C42: =F9*$C$43/12 -> 8.8269015 | D42: =(C42+F5)*$D$43 -> 1.877196601 | E42: 0 | F42: 0.3333333333
C43: 0.068 | D43: 0.1
B44: Tipo de zona | C44: CAPEX incremental (por entrante) | G44: Factor Uso (CAPEX incremental)
B45: Espacio en Rack | C45: INVERSIÓN | D45: Instalación | E45: Estudios + Mano Obra | F45: G. Adm.
B46: Lima: Espacio en Postes de Concreto | C46: 0 | D46: 0.7466666667 | E46: 6.931466667 | F46: =(D46+E46)*$F$50 -> 0.7678133333 | G46: 1
B47: Lima: Espacio en Postes de Fibra de Vidrio | C47: 0 | D47: 0.7466666667 | E47: 6.931466667 | F47: =(D47+E47)*$F$50 -> 0.7678133333 | G47: 1
B48: Provincias: Espacio en Postes de Concreto | C48: 0 | D48: 0.7466666667 | E48: 11.34938667 | F48: 1.209605333 | G48: 1
B49: Provincias: Espacio en Postes de Fibra de Vidrio | C49: 0 | D49: 0.7466666667 | E49: 11.34938667 | F49: 1.209605333 | G49: 1
D50: 1.15 | E50: 1.15 | F50: 0.1

Sheet Ductos
A1: 4 | B1: DUCTOS Y CANALIZACIÓN
B3: Variables de la fórmula | C3: Canalización sobre suelo de concreto | E3: Canalización sobre suelo de concreto y Asfalto
C4: Lima | D4: Provincias | E4: Lima | F4: Provincias
B6: Mensualidad de inversión (5 operadores) = | C6: =C10*($C$14/(1-(1+$C$14)^(-$C$12))) -> 115.2689051 | D6: =D10*($C$14/(1-(1+$C$14)^(-$C$12))) -> 108.0474786 | E6: =E10*($C$14/(1-(1+$C$14)^(-$C$12))) -> 121.2882346 | F6: =F10*($C$14/(1-(1+$C$14)^(-$C$12))) -> 114.066808
B8: Precio mensual (por operador) = | C8: =(((C10*($C$14/(1-(1+$C$14)^(-$C$12))))+C16+C20)*C22)+(C18*C24) -> 44.48663218 | D8: =(((D10*($C$14/(1-(1+$C$14)^(-$C$12))))+D16+D20)*D22)+(D18*D24) -> 41.69961041 | E8: =(((E10*($C$14/(1-(1+$C$14)^(-$C$12))))+E16+E20)*E22)+(E18*E24) -> 46.8097192 | F8: =(((F10*($C$14/(1-(1+$C$14)^(-$C$12))))+F16+F20)*F22)+(F18*F24) -> 44.02269743 | I8: =+C26 -> 613.715713
I9: =+E26 -> 645.7638796
B10: Inversión = | C10: =SUM(L38) -> 15342.89282 | D10: =SUM(L40) -> 14381.68326 | E10: =SUM(L39) -> 16144.09699 | F10: =SUM(L41) -> 15182.88743 | I10: =+D26 -> 575.2673304
I11: =+F26 -> 607.3154971
B12: n = | C12: =Parámetros!$E$6 -> 240 | D12: =Parámetros!$E$6 -> 240 | E12: =Parámetros!$E$6 -> 240 | F12: =Parámetros!$E$6 -> 240
B14: WACC = | C14: =Parámetros!$I$5 -> 0.005497367083 | D14: =Parámetros!$I$5 -> 0.005497367083 | E14: =Parámetros!$I$5 -> 0.005497367083 | F14: =Parámetros!$I$5 -> 0.005497367083
B16: OAMr = | C16: =SUM(C46:E46) -> 107.1642558 | D16: =SUM(C48:E48) -> 100.4505735 | E16: =SUM(C47:E47) -> 112.7603614 | F16: =SUM(C49:E49) -> 106.0466791
B18: OAMi = | C18: 0 | D18: 0 | E18: 0 | F18: 0
B20: Ct = | C20: 0 | D20: 0 | E20: 0 | F20: 0
B22: FUT = | C22: =1/5 -> 0.2 | D22: =1/5 -> 0.2 | E22: 0.2 | F22: 0.2
B24: FUC = | C24: 0.25 | D24: 0.25 | E24: 0.25 | F24: 0.25
B26: Adecuación = | C26: =C55 -> 613.715713 | D26: =C57 -> 575.2673304 | E26: =C56 -> 645.7638796 | F26: =C58 -> 607.3154971
B28: Inversión considerada en el modelo de costos de terminación de llamada en red fija
B29: Ductos, canalización (US$/km) | C29: 38306
B30: Cámara (US$/unidad) | C30: 1986.39
B31: Inversión total (US$/100mt) | C31: =+C29/10+C30 -> 5816.99
B32: Inversión total (S/100mt) | C32: =+C31*Parámetros!H9 -> 15342.89282
B35: Preciario considerado por OSIPTEL
B36: Ductos | C36: Inversión Inicial (relativa a 5 operadores) S/.
B37: Espacio en Rack | C37: Obra Civil (Mano de Obra) | D37: Obra Civil (Materiales) | E37: Vigilancia | F37: Gastos Administrativos de obra | G37: Diseño | H37: Licencias y Tributos de obra | I37: Vida útil | L37: Nueva Inversión
B38: Lima: Canalización, ductos y cámaras - Concreto (100m) - 2 pulgadas | I38: =Parámetros!$E$6 -> 240 | L38: 15342.89282
B39: Lima: Canalización, ductos y cámaras - Concreto + Asfalto (100m) - 2 pulgadas | I39: =Parámetros!$E$6 -> 240 | L39: 16144.09699
B40: Provincias: Canalización, ductos y cámaras - Concreto (100m) - 2 pulgadas | I40: =Parámetros!$E$6 -> 240 | L40: 14381.68326
B41: Provincias: Canalización, ductos y cámaras - Concreto + Asfalto (100m) - 2 pulgadas | I41: =Parámetros!$E$6 -> 240 | L41: 15182.88743
B42: Ratios
B44: Ductos | C44: OAMr | F44: Factor Uso (OPEX + Inversión Inicial)
B45: Espacio en Rack | C45: Costo de operación y mantenimiento | D45: Gasto Administrativo | E45: Margen Operativo
B46: Lima: Canalización, ductos y cámaras - Concreto (100m) - 2 pulgadas | C46: =C10*$C$50/12 -> 86.94305934 | D46: =(C46+C6)*$D$50 -> 20.22119645 | E46: 0 | F46: 0.2
B47: Lima: Canalización, ductos y cámaras - Concreto + Asfalto (100m) - 2 pulgadas | C47: =E10*$C$50/12 -> 91.48321628 | D47: =(C47+E6)*$D$50 -> 21.27714509 | E47: 0 | F47: 0.2
B48: Provincias: Canalización, ductos y cámaras - Concreto (100m) - 2 pulgadas | C48: =D10*$C$50/12 -> 81.49620514 | D48: =(C48+D6)*$D$50 -> 18.95436837 | E48: 0 | F48: 0.2
B49: Provincias: Canalización, ductos y cámaras - Concreto + Asfalto (100m) - 2 pulgadas | C49: =F10*$C$50/12 -> 86.03636209 | D49: =(C49+F6)*$D$50 -> 20.01031701 | E49: 0 | F49: 0.2
B50: Ratios | C50: 0.068 | D50: 0.1
B53: Ductos | C53: CAPEX incremental (por entrante)
B54: Espacio en Rack | C54: Inversión por operador (a todo costo) | G54: Factor Uso (CAPEX incremental)
B55: Lima: Canalización, ductos y cámaras - Concreto (100m) - 2 pulgadas | C55: =(L38/5)*$C$59 -> 613.715713 | G55: 1
B56: Lima: Canalización, ductos y cámaras - Concreto + Asfalto (100m) - 2 pulgadas | C56: =(L39/5)*$C$59 -> 645.7638796 | G56: 1
B57: Provincias: Canalización, ductos y cámaras - Concreto (100m) - 2 pulgadas | C57: =(L40/5)*$C$59 -> 575.2673304 | G57: 1
B58: Provincias: Canalización, ductos y cámaras - Concreto + Asfalto (100m) - 2 pulgadas | C58: 607.3154971 | G58: 1
B59: Ratios | C59: 0.2

Sheet Parámetros
B1: PARÁMETROS GENERALES
G2: WACC 2012 | H2: WACC después | I2: WACC antes | J2: Tax | L2: Para todos los servicios | M2: Ratio | N2: Base sobre la que se aplica
B3: ACTIVOS CONSIDERADOS | D3: VIDA ÚTIL | H3: impuestos S/. | I3: impuestos S/. | J3: 0.37 | L3: incluidos en la OBC de TdP
B4: Activo | C4: Tipo | D4: Años | E4: Meses | G4: WACC anual | H4: 0.0649 | I4: 0.068 | L4: Gastos de Operación y Mantenimiento | M4: 0.068 | N4: Sobre la inversión (I)
B5: Terreno y Obra Civil | C5: Edificación | D5: 20 | E5: 240 | G5: WACC mensual | H5: =(1+H4)^(1/12)-1 -> 0.005253828041 | I5: =(1+I4)^(1/12)-1 -> 0.005497367083 | L5: Gastos Administrativo | M5: 0.1 | N5: Sobre el costo de OyM y la anualidad de inversión (CAPEX)
B6: Ductos | C6: Edificación | D6: 20 | E6: 240 | G6: Fuente:
B7: Racks | C7: Soporte | D7: 10 | E7: 120
B8: Equipos de Energía | C8: Soporte | D8: 10 | E8: 120 | G8: Tipo de cambio | H8: 2012
B9: Postes (concreto y fibra vidrio) | C9: Postes | D9: 30 | E9: 360 | G9: Tipo de cambio S/. por US$ | H9: 2.6376
G10: Fuente: SBS

Sheet Resumen energía
B1: RESUMEN DE ENERGÍA
B2: Inversión Inicial (relativa a un entrante) Soles sin IGV
B3: Sin sobrecosto del 15% (por replicar costos del entrante)
F4: Cálculos corregidos a capacidad instalada e información de Inversión detallada enviada en respuesta a requerimiento.
B5: ZONAS | C5: TIPO | D5: PRODUCTO | E5: CONDICIONES TÉCNICAS DEL SITIO | F5: INVERSIÓN INICIAL SOLES x KW | G5: INVERSIÓN INCREMENTAL**
B6: ZONA A y B | C6: Edifico principal | D6: Energía DC | E6: - Edificios ubicados en centro de capitales de departamento. - Localidades con energía comercial las 24 hrs todo el año - Sitios sin problemas de siniestros en red de energía - Posible cortes programados no mayor a 4 hrs. - Salas con aire acondicionado y respaldo de grupo electrógeno. | F6: ='Inversión energía'!H45 -> 28532.89177 | G6: ='Inversión energía'!E45 -> 300
D7: Energía AC | F7: ='Inversión energía'!H46 -> 10055.79464 | G7: ='Inversión energía'!E46 -> 300
D8: Energía AC Estabilizada | F8: ='Inversión energía'!H47 -> 18786.25582 | G8: ='Inversión energía'!E47 -> 300
B10: ZONA C y D | C10: Edifico URA | D10: Energía DC | E10: - Edificios ubicados en Centros Urbanos. - Localidades con energía comercial las 24 hrs todo el año - Sitios sin problemas de siniestros en red de energía - Posible cortes programados no mayor a 4 hrs. - Salas con aire acondicionado y respaldo de grupo electrógeno. | F10: ='Inversión energía'!H89 -> 17780.70076 | G10: ='Inversión energía'!E89 -> 300
D11: Energía AC | F11: ='Inversión energía'!H90 -> 5995.582756 | G11: ='Inversión energía'!E90 -> 300
D12: Energía AC Estabilizada | F12: ='Inversión energía'!H91 -> 16099.65248 | G12: ='Inversión energía'!E91 -> 300
B14: ZONA E | C14: Edifico remoto | D14: Energía DC | E14: - Edificios ubicados en Centros Poblados Rurales o cerros. - Localidades con energía comercial las 24 hrs todo el año - Sitios sin problemas de siniestros en red de energía - Posible cortes programados no mayor a 4 hrs. - Sólo edificios donde existe grupo electrógeno. - Facilidades de climatización sujeto a estudio especial. | F14: ='Inversión energía'!H133 -> 22764.44576 | G14: ='Inversión energía'!E133 -> 300
D15: Energía AC | F15: ='Inversión energía'!H134 -> 10795.13235 | G15: ='Inversión energía'!E134 -> 300
D16: Energía AC Estabilizada | F16: ='Inversión energía'!H135 -> 19639.09088 | G16: ='Inversión energía'!E135 -> 300
B18: * La propuesta de TDP considera una inversión previsional estimada en base a 5 KW adicionales por cualquier riesgo operativo (que no se considera), además de un componente de "Estudios".
B19: ** Corresponde al rubro "Estudios" (re-levantamiento de carga y potencia, acondicionamiento y tableros, línea acometida y toma a tierra y otros) que si se considera por ser una prestación real.
B20: Notas:
B21: Energía AC : | C21: Inversión en aire acondiciondo, sistema de posicionamiento a tierra, sala de energía (tableros, subtableros y cableado), grupo electrógeno y una subestación (acometida, celda y tablero).
B22: Energía DC : | C22: Los mismos que para energía AC + un cuadro de fuerza de 3000 A.
B23: Energía AC Estabilizada : | C23: Los mismos que para energía AC + costo de la UPS (relativa a la potencia de los equipos)
B27: Definición Ubicaciones (revisado por OSIPTEL)
B29: EDIFICIO PRINCIPAL | C29: MI | D29: ZONA A | E29: Barranco, La Molina, Miraflores, San Borja, San Isidro, Santiago de Surco.
C32: MII | D32: ZONA B | E32: Breña, Cercado de Lima, Chorrillos, Jesus Maria, Lince, Magdalena, Pueblo Libre, Rimac, San Miguel, Surquillo,Ate, Comas, El Agustino, La victoria, San Juan de Lurigancho, San Luis, San Martin de Porres, Villa Maria del Triunfo, Los Olivos
B37: EDIFICIO URA | C37: PI | D37: ZONA C | E37: Zonas urbanas de capitales de Departamento:Tumbes, Piura, Chiclayo, Trujillo, Chimbote, Ica , Arequipa, Moquegua, Tacna, Puno, Cusco, Apurímac, Ayacucho, Huancavelica, Huancayo, Pasco, Huanuco, San Martin, Amazonas, Cajamarca, Iquitos, Ucayali, Madre de Dios
C41: PII | D41: ZONA D | E41: El resto de provincias, Lunahuana
B45: EDIFICIO REMOTO | C45: CER | D45: ZONA E | E45: Cerros Lima y Provincia

Sheet Inversión energía
C1: Información sin sobrecosto del 15% (por replicar costos del entrante)
C2: Información complementaria enviada mediante carta DR-107-C-0101-RE-13 (enviada el 29.01.2014)
A3: I. | B3: CENTRALES (EDIFICIO PRINCIPAL) - Zona A y B | C3: REVISIÓN OSIPTEL
B4: CAPACIDAD INSTALADA | C4: 800 | D4: Kw
B5: CAPACIDAD EFECTIVA | C5: 612 | D5: Kw | E5: =C5/C4 -> 0.765
F6: INVERSIÓN TOTAL
F7: =F10+F14+F18+F25+F28+F35+F41 -> 2894139.27 | G7: Montos con información detallada enviada en respuesta a requerimiento
B8: INVERSIÓN | G8: Kw
A9: 1 | B9: INVERSIÓN SUBESTACIÓN | C9: Acometida | D9: Transformador | E9: Tableros 220V | F9: Totales | G9: Costo unitario
B10: US$ | C10: ='Detalle Ed.Principal'!C7 -> 397543.24 | D10: ='Detalle Ed.Principal'!C6 -> 26461.72 | E10: ='Detalle Ed.Principal'!C8 -> 166425.6 | F10: =SUM(C10:E10) -> 590430.56 | G10: =F10/$C$5 -> 964.755817
A13: 2 | B13: GRUPO ELECTRÓGENO | F13: Totales | G13: Costo unitario
B14: US$ | F14: ='Detalle Ed.Principal'!C13 -> 600763.6 | G14: =F14/$C$5 -> 981.6398693
A17: 3 | B17: SALA DE ENERGÍA | F17: Totales | G17: Costo unitario
B18: US$ | F18: ='Detalle Ed.Principal'!C15 -> 235671.13 | G18: =F18/$C$5 -> 385.0835458
A21: 4 | B21: SISTEMA DE AIRE ACONDICIONADO
B22: CAPACIDAD INSTALADA | C22: 150 | D22: TR
B23: CAPACIDAD EFECTIVA | C23: 406 | D23: Kw
F24: Totales | G24: Costo unitario
F25: ='Detalle Ed.Principal'!C21 -> 585278.18 | G25: =F25/$C$23 -> 1441.571872
A27: 5 | B27: SISTEMA DE PROTECCIÓN A TIERRA | F27: Totales | G27: Costo unitario
F28: ='Detalle Ed.Principal'!C25 -> 24129.88 | G28: =F28/C5 -> 39.4279085
B30: CUADROS DE FUERZA 3000A
B31: CAPACIDAD DC | C31: 120 | D31: Kw
B32: CAPACIDAD EFECTIVA DC | C32: 96 | D32: Kw | E32: =C32/C31 -> 0.8
D34: Rectificador | E34: Baterias | F34: Totales | G34: Costo unitario
D35: ='Detalle Ed.Principal'!C18 -> 505723.85 | E35: ='Detalle Ed.Principal'!C19 -> 166781.96 | F35: =D35+E35 -> 672505.81 | G35: =F35/$C$32 -> 7005.268854
B37: ENERGÍA ESTABLE
B38: CAPACIDAD ESTABLE | C38: 70 | D38: Kw
B39: CAPACIDAD EFECTIVA | C39: 56 | D39: Kw | E39: =C39/C38 -> 0.8
F40: Totales | G40: Costo unitario
F41: ='Detalle Ed.Principal'!C23 -> 185360.11 | G41: =F41/$C$39 -> 3310.001964
E43: SOLES | G43: US$ | H43: SOLES
B44: INVERSIÓN POR TIPO DE ENERGÍA | E44: Costo incremental* | G44: Costo unitario | H44: Costo unitario
B45: ENERGÍA DC | E45: =Energía!$L$43 -> 300 | G45: =G46+G35 -> 10817.74787 | H45: =G45*$C$143 -> 28532.89177
B46: ENERGÍA AC | E46: =Energía!$D$43 -> 300 | G46: =G10+G14+G18+G25+G28 -> 3812.479012 | H46: =G46*$C$143 -> 10055.79464
B47: ENERGÍA AC Estabilizada | E47: =Energía!$T$43 -> 300 | G47: =G46+G41 -> 7122.480977 | H47: =G47*$C$143 -> 18786.25582
B49: * Estudios y re-levantamiento de carga y potencia, acondicionamiento y tableros, línea acometida y toma a tierra y otros.
A51: II. | B51: EDIFICIO URA - Zona C y D | C51: REVISIÓN OSIPTEL
B52: CAPACIDAD INSTALADA | C52: 250 | D52: Kw
B53: CAPACIDAD EFECTIVA | C53: 190 | D53: Kw | E53: =C53/C52 -> 0.76
F54: INVERSIÓN TOTAL
F55: =F58+F62+F69+F72+F79+F85 -> 592557.77 | G55: Montos con información detallada enviada en respuesta a requerimiento
B56: INVERSIÓN | G56: Kw
A57: 1 | B57: SUMINISTRO | C57: Acometida | D57: Transformador | E57: Tableros 220V | F57: Totales | G57: Costo unitario
B58: US$ | C58: ='Detalle Ed.URA'!$C$7 -> 60035.3 | D58: ='Detalle Ed.URA'!$C$6 -> 8066.23 | E58: ='Detalle Ed.URA'!$C$8 -> 30980.44 | F58: =SUM(C58:E58) -> 99081.97 | G58: =F58/C53 -> 521.4840526
A61: 2 | B61: GRUPO ELECTRÓGENO | F61: Totales | G61: Costo unitario
B62: US$ | F62: ='Detalle Ed.URA'!$C$14 -> 144691.31 | G62: =F62/C53 -> 761.5332105
A65: 3 | B65: SISTEMA DE AIRE ACONDICIONADO
B66: CAPACIDAD INSTALADA | C66: 40 | D66: TR
B67: CAPACIDAD EFECTIVA | C67: 100 | D67: Kw
F68: Totales | G68: Costo unitario
F69: ='Detalle Ed.URA'!$C$20 -> 95966.66 | G69: =F69/C67 -> 959.6666
A71: 4 | B71: SISTEMA DE PROTECCIÓN A TIERRA | F71: Totales | G71: Costo unitario
F72: ='Detalle Ed.URA'!$C$24 -> 5782.97 | G72: =F72/C53 -> 30.43668421
B74: CUADROS DE FUERZA 1500A
B75: CAPACIDAD DC | C75: 60 | D75: Kw
B76: CAPACIDAD EFECTIVA DC | C76: 45 | D76: Kw | E76: =C76/C75 -> 0.75
D78: Rectificador | E78: Baterias | F78: Totales | G78: Costo unitario
D79: ='Detalle Ed.URA'!$C$17 -> 100199 | E79: ='Detalle Ed.URA'!$C$18 -> 100866.48 | F79: =D79+E79 -> 201065.48 | G79: =F79/C76 -> 4468.121778
B81: ENERGÍA ESTABLE
B82: CAPACIDAD ESTABLE | C82: 15 | D82: Kw
B83: CAPACIDAD EFECTIVA | C83: 12 | D83: Kw | E83: =C83/C82 -> 0.8
C84: UPS | D84: Costo unitario | F84: Totales | G84: Costo unitario
C85: 40000 | D85: 4000 | F85: ='Detalle Ed.URA'!$C$22 -> 45969.38 | G85: =F85/C83 -> 3830.781667
D86: =C85/D85 -> 10 | E86: Kw
E87: SOLES | G87: US$ | H87: SOLES
B88: INVERSIÓN POR TIPO DE ENERGÍA | E88: Costo incremental* | G88: Costo unitario | H88: Costo unitario
B89: ENERGÍA DC | E89: =Energía!$L$43 -> 300 | G89: =G90+G79 -> 6741.242325 | H89: =G89*$C$143 -> 17780.70076
B90: ENERGÍA AC | E90: =Energía!$D$43 -> 300 | G90: =G58+G62+G69+G72 -> 2273.120547 | H90: =G90*$C$143 -> 5995.582756
B91: ENERGÍA AC Estabilizada | E91: =Energía!$T$43 -> 300 | G91: =G90+G85 -> 6103.902214 | H91: =G91*$C$143 -> 16099.65248
B93: * Estudios y re-levantamiento de carga y potencia, acondicionamiento y tableros, línea acometida y toma a tierra y otros.
A95: III. | B95: EDIFICIO REMOTO - Zona E | C95: REVISIÓN OSIPTEL
B96: CAPACIDAD INSTALADA | C96: 25 | D96: Kw
B97: CAPACIDAD EFECTIVA | C97: 19 | D97: Kw | E97: =C97/C96 -> 0.76
F98: INVERSIÓN TOTAL
F99: =F102+F106+F113+F116+F123+F129 -> 107764.39 | G99: Montos con información detallada enviada en respuesta a requerimiento
B100: INVERSIÓN | G100: Kw
A101: 1 | B101: SUMINISTRO | C101: Acometida | D101: Transformador | E101: Tableros 220V | F101: Totales | G101: Costo unitario
B102: US$ | C102: ='Detalle Ed.Remoto'!$C$7 -> 7019.55 | D102: ='Detalle Ed.Remoto'!$C$6 -> 2053.18 | E102: ='Detalle Ed.Remoto'!$C$8 -> 2937.53 | F102: =SUM(C102:E102) -> 12010.26 | G102: =F102/C97 -> 632.1189474
A105: 2 | B105: GRUPO ELECTRÓGENO | F105: Totales | G105: Costo unitario
B106: US$ | F106: ='Detalle Ed.Remoto'!$C$12 -> 36531.44 | G106: =F106/C97 -> 1922.707368
A109: 3 | B109: VENTILACIÓN FORZADA
B110: CAPACIDAD INSTALADA | C110: 2 | D110: TR
B111: CAPACIDAD EFECTIVA | C111: 5 | D111: Kw
F112: Totales | G112: Costo unitario
F113: ='Detalle Ed.Remoto'!$C$18 -> 7040.83 | G113: =F113/C111 -> 1408.166
A115: 4 | B115: SISTEMA DE PROTECCIÓN A TIERRA | F115: Totales | G115: Costo unitario
F116: ='Detalle Ed.Remoto'!$C$22 -> 2466.08 | G116: =F116/C97 -> 129.7936842
B118: CUADROS DE FUERZA 300A
B119: CAPACIDAD DC | C119: 10 | D119: Kw
B120: CAPACIDAD EFECTIVA DC | C120: 8 | D120: Kw | E120: =C120/C119 -> 0.8
D122: Rectificador | E122: Baterias | F122: Totales | G122: Costo unitario
D123: ='Detalle Ed.Remoto'!$C$15 -> 14476 | E123: ='Detalle Ed.Remoto'!$C$16 -> 21827.65 | F123: =D123+E123 -> 36303.65 | G123: =F123/C120 -> 4537.95625
B125: ENERGÍA ESTABLE
B126: CAPACIDAD ESTABLE | C126: 5 | D126: Kw
B127: CAPACIDAD EFECTIVA | C127: 4 | D127: Kw | E127: =C127/C126 -> 0.8
C128: UPS | D128: Costo unitario | F128: Totales | G128: Costo unitario
C129: 12000 | D129: 3600 | F129: ='Detalle Ed.Remoto'!$C$20 -> 13412.13 | G129: =F129/C127 -> 3353.0325
D130: =C129/D129 -> 3.333333333 | E130: Kw
E131: SOLES | G131: US$ | H131: SOLES
B132: INVERSIÓN POR TIPO DE ENERGÍA | E132: Costo incremental* | G132: Costo unitario | H132: Costo unitario
B133: ENERGÍA DC | E133: =Energía!$L$43 -> 300 | G133: =G134+G123 -> 8630.74225 | H133: =G133*$C$143 -> 22764.44576
B134: ENERGÍA AC | E134: =Energía!$D$43 -> 300 | G134: =G102+G106+G113+G116 -> 4092.786 | H134: =G134*$C$143 -> 10795.13235
B135: ENERGÍA AC Estabilizada | E135: =Energía!$T$43 -> 300 | G135: =G134+G129 -> 7445.8185 | H135: =G135*$C$143 -> 19639.09088
B137: * Estudios y re-levantamiento de carga y potencia, acondicionamiento y tableros, línea acometida y toma a tierra y otros.
B138: Notas:
B139: Energía AC : | C139: Inversión en aire acondiciondo, sistema de posicionamiento a tierra, sala de energía (tableros, subtableros y cableado), grupo electrógeno y una subestación (acometida, celda y tablero).
B140: Energía DC : | C140: Los mismos que para energía AC + un cuadro de fuerza de 3000 A.
B141: Energía AC Estabilizada : | C141: Los mismos que para energía AC + costo de la UPS (relativa a la potencia de los equipos)
B143: TC = | C143: =Parámetros!H9 -> 2.6376 | D143: Fuente: SBS

Sheet Detalle Ed.Principal
C1: COSTO US$ SIN IGV
B2: INVERSIÓN EDIFICIO PRINCIPAL | C2: =C5+C13+C15+C17+C21+C23+C25 -> 2894139.27 | M2: RESUMEN INVERSIÓN EDIFICIO PRINCIPAL
B3: ELEMENTOS: | L3: N° | M3: ELEMENTOS: | N3: COSTO US$ SIN IGV
L4: 1 | M4: =B5 -> SUBESTACIÓN | N4: =C5 -> 590430.56
A5: 1 | B5: SUBESTACIÓN | C5: =SUM(C6:C8) -> 590430.56 | L5: 2 | M5: =B13 -> GRUPO ELECTRÓGENO | N5: =C13 -> 600763.6
B6: Transformador 800 Kw 10/0.22 Kv - interior | C6: 26461.72 | L6: 3 | M6: =B15 -> SALA DE ENERGÍA Y TABLEROS | N6: =C15 -> 235671.13
B7: Acometida Electrica - 10 Kv | C7: 397543.24 | L7: 4 | M7: =B17 -> PLANTA DE FUERZA | N7: =C17 -> 672505.81
B8: Tableros - 220 V | C8: 166425.6 | L8: 5 | M8: =B21 -> CLIMATIZACIÓN - SISTEMA DE AIRE ACONDICIONADO | N8: =C21 -> 585278.18
L9: 6 | M9: =B23 -> ENERGÍA ESTABLE - SISTEMA UPS | N9: =C23 -> 185360.11
L10: 7 | M10: =B25 -> SISTEMA A TIERRA | N10: =C25 -> 24129.88
N11: =SUM(N4:N10) -> 2894139.27
A13: 2 | B13: GRUPO ELECTRÓGENO | C13: 600763.6
A15: 3 | B15: SALA DE ENERGÍA Y TABLEROS | C15: 235671.13
A17: 4 | B17: PLANTA DE FUERZA | C17: =C18+C19 -> 672505.81
B18: Sistema de Rectificador | C18: 505723.85
B19: Bancos de Baterias | C19: 166781.96
A21: 5 | B21: CLIMATIZACIÓN - SISTEMA DE AIRE ACONDICIONADO | C21: 585278.18
A23: 6 | B23: ENERGÍA ESTABLE - SISTEMA UPS | C23: 185360.11
A25: 7 | B25: SISTEMA A TIERRA | C25: 24129.88

Sheet Detalle Ed.URA
C1: COSTO US$ SIN IGV
B2: INVERSIÓN EDIFICIO URA | C2: =C5+C14+C16+C20+C22+C24 -> 592557.77 | N2: RESUMEN INVERSIÓN EDIFICIO URA
B3: ELEMENTOS: | M3: N° | N3: ELEMENTOS: | O3: COSTO US$ SIN IGV
M4: 1 | N4: =B5 -> SUMINISTRO DE ENERGÍA | O4: =C5 -> 99081.97
A5: 1 | B5: SUMINISTRO DE ENERGÍA | C5: =SUM(C6:C8) -> 99081.97 | M5: 2 | N5: =B14 -> GRUPO ELECTRÓGENO | O5: =C14 -> 144691.31
B6: Transformador 10/0.22 Kv - interior | C6: 8066.23 | M6: 3 | N6: =B16 -> PLANTA DE FUERZA | O6: =C16 -> 201065.48
B7: Acometida Electrica - 10 Kv | C7: 60035.3 | M7: 4 | N7: =B20 -> CLIMATIZACIÓN - SISTEMA DE AIRE ACONDICIONADO | O7: =C20 -> 95966.66
B8: Tableros - 220 V | C8: 30980.44 | M8: 5 | N8: =B22 -> ENERGÍA ESTABLE - SISTEMA UPS | O8: =C22 -> 45969.38
M9: 6 | N9: =B24 -> SISTEMA A TIERRA | O9: =C24 -> 5782.97
O10: =SUM(O4:O9) -> 592557.77
A14: 2 | B14: GRUPO ELECTRÓGENO | C14: 144691.31
A16: 3 | B16: PLANTA DE FUERZA | C16: =C17+C18 -> 201065.48
B17: Sistema de Rectificador | C17: 100199
B18: Bancos de Baterias | C18: 100866.48
A20: 4 | B20: CLIMATIZACIÓN - SISTEMA DE AIRE ACONDICIONADO | C20: 95966.66
A22: 5 | B22: ENERGÍA ESTABLE - SISTEMA UPS | C22: 45969.38
A24: 6 | B24: SISTEMA A TIERRA | C24: 5782.97

Sheet Detalle Ed.Remoto
C1: COSTO US$ SIN IGV
B2: INVERSIÓN EDIFICIO REMOTO | C2: =C5+C12+C14+C18+C20+C22 -> 107764.39 | O2: RESUMEN INVERSIÓN EDIFICIO REMOTO
B3: ELEMENTOS: | N3: N° | O3: ELEMENTOS: | P3: COSTO US$ SIN IGV
N4: 1 | O4: =B5 -> PLANTA DE ENERGÍA | P4: =C5 -> 12010.26
A5: 1 | B5: PLANTA DE ENERGÍA | C5: =SUM(C6:C8) -> 12010.26 | N5: 2 | O5: =B12 -> GRUPO ELECTRÓGENO | P5: =C12 -> 36531.44
B6: Transformador 10/0.22 Kv - interior | C6: 2053.18 | N6: 3 | O6: =B14 -> PLANTA DE FUERZA | P6: =C14 -> 36303.65
B7: Acometida Electrica - 10 Kv | C7: 7019.55 | N7: 4 | O7: =B18 -> CLIMATIZACIÓN - SISTEMA DE AIRE ACONDICIONADO | P7: =C18 -> 7040.83
B8: Tableros - 220 V | C8: 2937.53 | N8: 5 | O8: =B20 -> ENERGÍA ESTABLE - SISTEMA UPS | P8: =C20 -> 13412.13
N9: 6 | O9: =B22 -> SISTEMA A TIERRA | P9: =C22 -> 2466.08
P10: =SUM(P4:P9) -> 107764.39
A12: 2 | B12: GRUPO ELECTRÓGENO | C12: 36531.44
A14: 3 | B14: PLANTA DE FUERZA | C14: =C15+C16 -> 36303.65
B15: Sistema de Rectificador | C15: 14476
B16: Bancos de Baterias | C16: 21827.65
A18: 4 | B18: CLIMATIZACIÓN - SISTEMA DE AIRE ACONDICIONADO | C18: 7040.83
A20: 5 | B20: ENERGÍA ESTABLE - SISTEMA UPS | C20: 13412.13
A22: 6 | B22: SISTEMA A TIERRA | C22: 2466.08
